fUSD/lending_fUSD_20240914
["ID","MTS","AMOUNT","RATE_DAILY","PERIOD"]
[338144700,1726302640113,-1175.496228,0.0001479,2]
[338144701,1726302640122,-1175.496228,0.0001479,2]
[338144702,1726302640131,-150.0,0.00014791,2]
[338144703,1726302640148,-168.66345953,0.00014799,2]
[338144704,1726302640159,-27874.64531357,0.000148,2]
[338144705,1726302640169,-827.350988,0.000148,2]
[338144706,1726302640178,-3000.0,0.000148,2]
[338144707,1726302640187,-151.0,0.000148,2]
[338144708,1726302640196,-248.114333,0.000148,2]
[338144709,1726302640205,-151.0,0.000148,2]
[338144710,1726302640215,-151.0,0.000148,2]
[338144711,1726302640224,-151.0,0.000148,2]
[338144712,1726302640233,-339.993061,0.000148,2]
[338144713,1726302640242,-339.993061,0.000148,2]
[338144714,1726302640252,-151.0,0.000148,2]
[338144715,1726302640261,-235.736672,0.000148,2]
[338144716,1726302640271,-235.736672,0.000148,2]
[338144717,1726302640280,-151.0,0.000148,2]
[338144718,1726302640289,-151.0,0.000148,2]
[338144719,1726302640299,-151.0,0.000148,2]
[338144720,1726302640308,-151.0,0.000148,2]
[338144721,1726302640317,-595.533647,0.000148,2]
[338144722,1726302640326,-595.533647,0.000148,2]
[338144723,1726302640335,-151.0,0.000148,2]
[338144724,1726302640345,-711.803448,0.000148,2]
[338144725,1726302640354,-151.0,0.000148,2]
[338144726,1726302640363,-711.803448,0.000148,2]
[338144727,1726302640376,-151.0,0.000148,2]
[338144728,1726302640385,-151.0,0.000148,2]
[338144729,1726302640394,-763.178834,0.000148,2]
[338144730,1726302640404,-763.178834,0.000148,2]
[338144731,1726302640415,-763.178834,0.000148,2]
[338144732,1726302640424,-763.178834,0.000148,2]
[338144733,1726302640433,-151.0,0.000148,2]
[338144734,1726302640443,-151.0,0.000148,2]
[338144735,1726302640453,-151.0,0.000148,2]
[338144736,1726302640463,-151.0,0.000148,2]
[338144737,1726302640472,-206.768776,0.000148,2]
[338144738,1726302640481,-206.768776,0.000148,2]
[338144739,1726302640491,-206.768776,0.000148,2]
[338144740,1726302640500,-206.768776,0.000148,2]
[338144741,1726302640510,-151.0,0.000148,2]
[338144742,1726302640519,-151.0,0.000148,2]
[338144743,1726302640529,-260.631732,0.000148,2]
[338144744,1726302640539,-151.0,0.000148,2]
[338144745,1726302640548,-151.0,0.000148,2]
[338144746,1726302640557,-151.0,0.000148,2]
[338144747,1726302640566,-151.0,0.000148,2]
[338144748,1726302640576,-151.0,0.000148,2]
[338144749,1726302640585,-834.054531,0.000148,2]
[338144750,1726302640595,-834.054531,0.000148,2]
[338144751,1726302640604,-834.054531,0.000148,2]
[338144752,1726302640614,-834.054531,0.000148,2]
[338144753,1726302640623,-834.054531,0.000148,2]
[338144754,1726302640632,-834.054531,0.000148,2]
[338144755,1726302640641,-2119.997984,0.000148,2]
[338144756,1726302640650,-2119.997984,0.000148,2]
[338144757,1726302640659,-2119.997984,0.000148,2]
[338144759,1726302640668,-2119.997984,0.000148,2]
[338144761,1726302640678,-2119.997984,0.000148,2]
[338144763,1726302640687,-2119.997984,0.000148,2]
[338144765,1726302640696,-449.407054,0.000148,2]
[338144767,1726302640705,-449.407054,0.000148,2]
[338144769,1726302640714,-449.407054,0.000148,2]
[338144771,1726302640723,-449.407054,0.000148,2]
[338144772,1726302640733,-449.407054,0.000148,2]
[338144774,1726302640742,-449.407054,0.000148,2]
[338144776,1726302640751,-151.0,0.000148,2]
[338144778,1726302640761,-151.0,0.000148,2]
[338144780,1726302640770,-151.0,0.000148,2]
[338144782,1726302640780,-151.0,0.000148,2]
[338144784,1726302640789,-151.0,0.000148,2]
[338144785,1726302640798,-151.0,0.000148,2]
[338144787,1726302640807,-151.0,0.000148,2]
[338144789,1726302640817,-151.0,0.000148,2]
[338144791,1726302640826,-151.0,0.000148,2]
[338144793,1726302640835,-162.825222,0.000148,2]
[338144795,1726302640844,-176.859049,0.000148,2]
[338144797,1726302640855,-176.859049,0.000148,2]
[338144799,1726302640864,-176.859049,0.000148,2]
[338144800,1726302640873,-10000.0,0.000148,2]
[338144802,1726302640883,-10000.0,0.000148,2]
[338144804,1726302640892,-10000.0,0.000148,2]
[338144806,1726302640901,-176.859049,0.000148,2]
[338144808,1726302640910,-176.859049,0.000148,2]
[338144810,1726302640919,-10000.0,0.000148,2]
[338144812,1726302640928,-10000.0,0.000148,2]
[338144814,1726302640937,-176.859049,0.000148,2]
[338144816,1726302640946,-10000.0,0.000148,2]
[338144817,1726302640955,-10000.0,0.000148,2]
[338144819,1726302640964,-10000.0,0.000148,2]
[338144821,1726302640974,-10000.0,0.000148,2]
[338144823,1726302640983,-10000.0,0.000148,2]
[338144825,1726302640992,-10000.0,0.000148,2]
[338144827,1726302641001,-10000.0,0.000148,2]
[338144829,1726302641010,-151.0,0.000148,2]
[338144831,1726302641019,-171.135695,0.000148,2]
[338144853,1726302641248,-932.31,0.000148,2]
[338144854,1726302641258,-1175.496228,0.000148,2]
[338144855,1726302641268,-1175.496228,0.000148,2]
[338144856,1726302641278,-1175.496228,0.000148,2]
[338144857,1726302641287,-1175.496228,0.000148,2]
[338144858,1726302641296,-1175.496228,0.000148,2]
[338144859,1726302641306,-1175.496228,0.000148,2]
[338144860,1726302641315,-1175.496228,0.000148,2]
[338144861,1726302641324,-1175.496228,0.000148,2]
[338144862,1726302641335,-1175.496228,0.000148,2]
[338144863,1726302641346,-1175.496233,0.000148,2]
[338144864,1726302641356,-1100.0,0.000148,5]
[338144865,1726302641365,-500.0,0.000148,5]
[338144866,1726302641378,-150.0,0.00014805,2]
[338144867,1726302641388,-150.0,0.00014813,2]
[338144868,1726302641400,-150.0,0.0001482,2]
[338144869,1726302641411,-1500.0,0.00014822,2]
[338144870,1726302641420,-176.859049,0.00014822,2]
[338144871,1726302641429,-10000.0,0.00014822,2]
[338144872,1726302641439,-176.859049,0.00014822,2]
[338144873,1726302641452,-10000.0,0.00014822,2]
[338144874,1726302641462,-10000.0,0.00014822,2]
[338144875,1726302641471,-1559.937309,0.00014822,2]
[338144876,1726302641481,-150.0,0.00014823,2]
[338144877,1726302641491,-150.0,0.00014825,2]
[338144878,1726302641501,-150.0,0.00014837,2]
[338144879,1726302641510,-150.0,0.00014843,2]
[338144880,1726302641520,-2709.11,0.0001485,2]
[338144881,1726302641529,-151.0,0.0001485,2]
[338144882,1726302641539,-763.178834,0.0001485,2]
[338144883,1726302641548,-763.178834,0.0001485,2]
[338144884,1726302641557,-151.0,0.0001485,2]
[338144885,1726302641566,-151.0,0.0001485,2]
[338144886,1726302641575,-206.768776,0.0001485,2]
[338144887,1726302641585,-206.768776,0.0001485,2]
[338144888,1726302641594,-151.0,0.0001485,2]
[338144889,1726302641603,-176.54771119,0.00014857,2]
[338144890,1726302641612,-150.0,0.00014863,2]
[338144891,1726302641621,-150.0,0.00014867,2]
[338144892,1726302641631,-163.44695647,0.00014868,2]
[338144893,1726302641640,-207.18361201,0.00014868,2]
[338144894,1726302641649,-176.05001171,0.00014868,2]
[338144895,1726302641658,-20608.2471738,0.00014869,3]
[338144896,1726302641667,-21123.1520668,0.00014869,3]
[338144897,1726302641676,-144257.730217,0.00014869,3]
[338144898,1726302641685,-147862.064467,0.00014869,3]
[338144899,1726302641694,-150.0,0.00014871,2]
[338144900,1726302641703,-150.0,0.00014871,2]
[338144901,1726302641712,-150.0,0.00014872,2]
[338144902,1726302641721,-576.94988825,0.00014873,2]
[338144903,1726302641730,-150.0,0.00014873,2]
[338144904,1726302641739,-152.59925876,0.00014876,2]
[338144905,1726302641750,-21123.1520668,0.00014877,3]
[338144906,1726302641760,-150.0,0.00014878,2]
[338144907,1726302641769,-61589.7382,0.00014879,2]
[338144908,1726302641778,-2103.9346,0.00014879,2]
[338144909,1726302641787,-224.987572,0.00014879,2]
[338144910,1726302641796,-224.987572,0.00014879,2]
[338144911,1726302641805,-151.0,0.00014879,2]
[338144912,1726302641814,-152.196259,0.00014879,2]
[338144913,1726302641823,-233.042485,0.00014879,2]
[338144914,1726302641832,-217.852752,0.00014879,2]
[338144915,1726302641841,-271.126388,0.00014879,2]
[338144916,1726302641849,-151.0,0.00014879,2]
[338144917,1726302641869,-155.75713008,0.00014879,2]
[338144918,1726302641878,-178.018684,0.00014879,2]
[338144919,1726302641887,-178.018684,0.00014879,2]
[338144920,1726302641896,-178.018684,0.00014879,2]
[338144921,1726302641905,-178.018684,0.00014879,2]
[338144922,1726302641914,-257.516852,0.00014879,2]
[338144923,1726302641923,-257.516852,0.00014879,2]
[338144924,1726302641932,-257.516852,0.00014879,2]
[338144925,1726302641941,-257.516852,0.00014879,2]
[338144926,1726302641950,-151.0,0.00014879,2]
[338144927,1726302641959,-151.0,0.00014879,2]
[338144928,1726302641969,-1116.862567,0.00014879,2]
[338144929,1726302641978,-1116.862567,0.00014879,2]
[338144930,1726302641987,-202.103686,0.00014879,2]
[338144931,1726302641996,-151.0,0.00014879,2]
[338144932,1726302642005,-151.0,0.00014879,2]
[338144933,1726302642014,-151.0,0.00014879,2]
[338144934,1726302642023,-151.0,0.00014879,2]
[338144935,1726302642032,-153.481833,0.00014879,2]
[338144936,1726302642041,-1641.284459,0.00014879,2]
[338144937,1726302642050,-1641.284459,0.00014879,2]
[338144938,1726302642059,-1641.284459,0.00014879,2]
[338144939,1726302642068,-1641.284459,0.00014879,2]
[338144940,1726302642077,-151.0,0.00014879,2]
[338144941,1726302642086,-151.0,0.00014879,2]
[338144942,1726302642096,-151.0,0.00014879,2]
[338144943,1726302642107,-151.0,0.00014879,2]
[338144944,1726302642116,-151.0,0.00014879,2]
[338144945,1726302642125,-151.0,0.00014879,2]
[338144946,1726302642134,-151.0,0.00014879,2]
[338144947,1726302642144,-151.0,0.00014879,2]
[338144948,1726302642153,-151.0,0.00014879,2]
[338144949,1726302642162,-330.045564,0.00014879,2]
[338144950,1726302642172,-330.045564,0.00014879,2]
[338144951,1726302642181,-330.045564,0.00014879,2]
[338144952,1726302642191,-151.0,0.00014879,2]
[338144953,1726302642199,-151.0,0.00014879,2]
[338144954,1726302642209,-151.0,0.00014879,2]
[338144955,1726302642218,-330.045564,0.00014879,2]
[338144956,1726302642228,-330.045564,0.00014879,2]
[338144957,1726302642237,-330.045564,0.00014879,2]
[338144958,1726302642246,-172.138502,0.00014879,2]
[338144959,1726302642255,-172.138502,0.00014879,2]
[338144960,1726302642265,-172.138502,0.00014879,2]
[338144961,1726302642274,-172.138502,0.00014879,2]
[338144962,1726302642283,-172.138502,0.00014879,2]
[338144963,1726302642293,-172.138502,0.00014879,2]
[338144964,1726302642302,-151.0,0.00014879,2]
[338144965,1726302642311,-151.0,0.00014879,2]
[338144966,1726302642321,-1253.789194,0.00014879,2]
[338144967,1726302642330,-151.0,0.00014879,2]
[338144968,1726302642338,-1253.789194,0.00014879,2]
[338144969,1726302642347,-1253.789194,0.00014879,2]
[338144970,1726302642360,-1253.789194,0.00014879,2]
[338144971,1726302642373,-151.0,0.00014879,2]
[338144972,1726302642382,-1253.789194,0.00014879,2]
[338144973,1726302642391,-151.0,0.00014879,2]
[338144974,1726302642400,-1253.789194,0.00014879,2]
[338144975,1726302642411,-224.365706,0.00014879,2]
[338144976,1726302642420,-151.0,0.00014879,2]
[338144977,1726302642429,-151.0,0.00014879,2]
[338144978,1726302642438,-151.0,0.00014879,2]
[338144979,1726302642450,-241.583162,0.00014879,2]
[338144980,1726302642459,-422.500245,0.00014879,2]
[338144981,1726302642469,-422.500245,0.00014879,2]
[338144982,1726302642478,-422.500245,0.00014879,2]
[338144983,1726302642487,-422.500245,0.00014879,2]
[338144984,1726302642496,-422.500245,0.00014879,2]
[338144985,1726302642505,-422.500245,0.00014879,2]
[338144986,1726302642514,-151.0,0.00014879,2]
[338144987,1726302642524,-151.0,0.00014879,2]
[338144988,1726302642533,-151.0,0.00014879,2]
[338144989,1726302642542,-151.0,0.00014879,2]
[338144990,1726302642551,-151.0,0.00014879,2]
[338144991,1726302642560,-151.0,0.00014879,2]
[338144992,1726302642569,-1534.875865,0.00014879,2]
[338144993,1726302642578,-1534.875865,0.00014879,2]
[338144994,1726302642588,-1534.875865,0.00014879,2]
[338144995,1726302642597,-1534.875865,0.00014879,2]
[338144996,1726302642608,-1534.875865,0.00014879,2]
[338144997,1726302642617,-1534.875865,0.00014879,2]
[338144998,1726302642626,-339.993061,0.00014879,2]
[338144999,1726302642635,-339.993061,0.00014879,2]
[338145000,1726302642644,-339.993061,0.00014879,2]
[338145001,1726302642653,-339.993061,0.00014879,2]
[338145002,1726302642663,-339.993061,0.00014879,2]
[338145003,1726302642672,-339.993061,0.00014879,2]
[338145004,1726302642681,-230.516477,0.00014879,2]
[338145005,1726302642690,-230.516477,0.00014879,2]
[338145006,1726302642699,-230.516477,0.00014879,2]
[338145007,1726302642709,-230.516477,0.00014879,2]
[338145008,1726302642718,-230.516477,0.00014879,2]
[338145009,1726302642727,-230.516477,0.00014879,2]
[338145010,1726302642737,-157.128884,0.00014879,2]
[338145011,1726302642747,-151.0,0.00014879,2]
[338145012,1726302642757,-151.0,0.00014879,2]
[338145013,1726302642767,-151.118434,0.00014879,2]
[338145014,1726302642777,-235.736672,0.00014879,2]
[338145015,1726302642787,-235.736672,0.00014879,2]
[338145016,1726302642796,-235.736672,0.00014879,2]
[338145017,1726302642806,-235.736672,0.00014879,2]
[338145018,1726302642817,-235.736672,0.00014879,2]
[338145019,1726302642827,-235.736672,0.00014879,2]
[338145020,1726302642837,-151.0,0.00014879,2]
[338145021,1726302642846,-235.736672,0.00014879,2]
[338145022,1726302642858,-151.0,0.00014879,2]
[338145023,1726302642868,-235.736672,0.00014879,2]
[338145024,1726302642878,-323.404308,0.00014879,2]
[338145025,1726302642888,-323.404308,0.00014879,2]
[338145026,1726302642897,-323.404308,0.00014879,2]
[338145027,1726302642907,-151.0,0.00014879,2]
[338145028,1726302642916,-151.0,0.00014879,2]
[338145029,1726302642925,-151.0,0.00014879,2]
[338145030,1726302642934,-151.0,0.00014879,2]
[338145031,1726302642944,-151.0,0.00014879,2]
[338145032,1726302642953,-151.0,0.00014879,2]
[338145033,1726302642963,-151.0,0.00014879,2]
[338145034,1726302642973,-151.0,0.00014879,2]
[338145035,1726302642982,-151.0,0.00014879,2]
[338145036,1726302642991,-245.0,0.00014879,2]
[338145037,1726302643001,-595.533647,0.00014879,2]
[338145038,1726302643010,-595.533647,0.00014879,2]
[338145039,1726302643020,-595.533647,0.00014879,2]
[338145041,1726302643030,-595.533647,0.00014879,2]
[338145042,1726302643039,-595.533647,0.00014879,2]
[338145043,1726302643047,-595.533647,0.00014879,2]
[338145045,1726302643057,-595.533647,0.00014879,2]
[338145046,1726302643067,-595.533647,0.00014879,2]
[338145048,1726302643077,-151.0,0.00014879,2]
[338145049,1726302643086,-151.0,0.00014879,2]
[338145050,1726302643095,-711.803448,0.00014879,2]
[338145051,1726302643108,-151.0,0.00014879,2]
[338145052,1726302643117,-711.803448,0.00014879,2]
[338145053,1726302643127,-711.803448,0.00014879,2]
[338145054,1726302643136,-711.803448,0.00014879,2]
[338145055,1726302643146,-151.0,0.00014879,2]
[338145056,1726302643155,-151.0,0.00014879,2]
[338145057,1726302643164,-711.803448,0.00014879,2]
[338145058,1726302643173,-151.0,0.00014879,2]
[338145059,1726302643182,-711.803448,0.00014879,2]
[338145061,1726302643193,-711.803448,0.00014879,2]
[338145063,1726302643202,-711.803448,0.00014879,2]
[338145064,1726302643211,-763.178834,0.00014879,2]
[338145065,1726302643221,-763.178834,0.00014879,2]
[338145066,1726302643230,-763.178834,0.00014879,2]
[338145067,1726302643240,-763.178834,0.00014879,2]
[338145068,1726302643250,-763.178834,0.00014879,2]
[338145069,1726302643259,-763.178834,0.00014879,2]
[338145070,1726302643269,-763.178834,0.00014879,2]
[338145071,1726302643278,-763.178834,0.00014879,2]
[338145072,1726302643288,-763.178834,0.00014879,2]
[338145073,1726302643297,-763.178834,0.00014879,2]
[338145074,1726302643307,-763.178834,0.00014879,2]
[338145075,1726302643316,-763.178834,0.00014879,2]
[338145076,1726302643326,-763.178834,0.00014879,2]
[338145077,1726302643336,-763.17883,0.00014879,2]
[338145078,1726302643345,-151.0,0.00014879,2]
[338145079,1726302643356,-151.0,0.00014879,2]
[338145080,1726302643366,-151.0,0.00014879,2]
[338145081,1726302643383,-151.0,0.00014879,2]
[338145082,1726302643394,-151.0,0.00014879,2]
[338145083,1726302643403,-151.0,0.00014879,2]
[338145084,1726302643412,-151.0,0.00014879,2]
[338145085,1726302643423,-206.768776,0.00014879,2]
[338145086,1726302643433,-151.0,0.00014879,2]
[338145087,1726302643444,-248.528735,0.00014879,2]
[338145088,1726302643457,-181.43425,0.00014879,2]
[338145089,1726302643467,-206.768776,0.00014879,2]
[338145090,1726302643477,-206.768776,0.00014879,2]
[338145091,1726302643489,-206.768776,0.00014879,2]
[338145092,1726302643498,-206.768776,0.00014879,2]
[338145093,1726302643508,-206.768776,0.00014879,2]
[338145094,1726302643518,-206.768776,0.00014879,2]
[338145095,1726302643527,-206.768776,0.00014879,2]
[338145096,1726302643538,-206.768776,0.00014879,2]
[338145097,1726302643548,-206.768776,0.00014879,2]
[338145098,1726302643557,-206.768776,0.00014879,2]
[338145099,1726302643567,-206.768776,0.00014879,2]
[338145101,1726302643577,-206.768776,0.00014879,2]
[338145102,1726302643587,-206.768774,0.00014879,2]
[338145103,1726302643597,-151.0,0.00014879,2]
[338145104,1726302643609,-151.0,0.00014879,2]
[338145105,1726302643618,-151.0,0.00014879,2]
[338145106,1726302643628,-151.0,0.00014879,2]
[338145107,1726302643637,-151.0,0.00014879,2]
[338145108,1726302643647,-151.0,0.00014879,2]
[338145109,1726302643657,-151.0,0.00014879,2]
[338145110,1726302643667,-155.790356,0.00014879,2]
[338145111,1726302643677,-834.054531,0.00014879,2]
[338145112,1726302643688,-834.054531,0.00014879,2]
[338145113,1726302643698,-834.054531,0.00014879,2]
[338145115,1726302643707,-834.054531,0.00014879,2]
[338145116,1726302643717,-834.054531,0.00014879,2]
[338145117,1726302643726,-834.054531,0.00014879,2]
[338145118,1726302643735,-834.054531,0.00014879,2]
[338145119,1726302643744,-834.054531,0.00014879,2]
[338145120,1726302643753,-834.054531,0.00014879,2]
[338145121,1726302643762,-834.054531,0.00014879,2]
[338145122,1726302643772,-834.054531,0.00014879,2]
[338145123,1726302643781,-834.054531,0.00014879,2]
[338145124,1726302643790,-2119.997984,0.00014879,2]
[338145125,1726302643799,-834.054531,0.00014879,2]
[338145126,1726302643809,-2119.997984,0.00014879,2]
[338145127,1726302643818,-834.054529,0.00014879,2]
[338145128,1726302643827,-2119.997984,0.00014879,2]
[338145129,1726302643837,-2119.997984,0.00014879,2]
[338145130,1726302643846,-2119.997984,0.00014879,2]
[338145131,1726302643856,-2119.997984,0.00014879,2]
[338145132,1726302643865,-2119.997984,0.00014879,2]
[338145133,1726302643875,-2119.997984,0.00014879,2]
[338145134,1726302643884,-2119.997984,0.00014879,2]
[338145135,1726302643894,-2119.997984,0.00014879,2]
[338145136,1726302643903,-2119.997984,0.00014879,2]
[338145137,1726302643912,-2119.997984,0.00014879,2]
[338145138,1726302643921,-2119.997984,0.00014879,2]
[338145139,1726302643931,-2119.997986,0.00014879,2]
[338145140,1726302643940,-449.407054,0.00014879,2]
[338145141,1726302643950,-449.407054,0.00014879,2]
[338145142,1726302643959,-449.407054,0.00014879,2]
[338145143,1726302643969,-449.407054,0.00014879,2]
[338145144,1726302643978,-449.407054,0.00014879,2]
[338145145,1726302643987,-449.407054,0.00014879,2]
[338145146,1726302643996,-449.407054,0.00014879,2]
[338145147,1726302644005,-449.407054,0.00014879,2]
[338145148,1726302644015,-449.407054,0.00014879,2]
[338145149,1726302644025,-449.407054,0.00014879,2]
[338145150,1726302644034,-449.407054,0.00014879,2]
[338145151,1726302644044,-449.407054,0.00014879,2]
[338145152,1726302644054,-449.407054,0.00014879,2]
[338145153,1726302644063,-449.407045,0.00014879,2]
[338145154,1726302644073,-151.0,0.00014879,2]
[338145155,1726302644083,-155.950487,0.00014879,2]
[338145156,1726302644092,-176.859049,0.00014879,2]
[338145157,1726302644102,-10000.0,0.00014879,2]
[338145158,1726302644112,-176.859049,0.00014879,2]
[338145159,1726302644121,-10000.0,0.00014879,2]
[338145160,1726302644130,-176.859049,0.00014879,2]
[338145161,1726302644140,-10000.0,0.00014879,2]
[338145162,1726302644150,-176.859049,0.00014879,2]
[338145163,1726302644159,-176.859049,0.00014879,2]
[338145164,1726302644168,-10000.0,0.00014879,2]
[338145165,1726302644178,-10000.0,0.00014879,2]
[338145166,1726302644188,-176.859049,0.00014879,2]
[338145167,1726302644197,-176.859049,0.00014879,2]
[338145168,1726302644207,-10000.0,0.00014879,2]
[338145169,1726302644216,-176.859049,0.00014879,2]
[338145170,1726302644226,-10000.0,0.00014879,2]
[338145171,1726302644234,-176.859049,0.00014879,2]
[338145172,1726302644244,-10000.0,0.00014879,2]
[338145173,1726302644252,-176.859045,0.00014879,2]
[338145174,1726302644262,-10000.0,0.00014879,2]
[338145175,1726302644270,-10000.0,0.00014879,2]
[338145176,1726302644280,-10000.0,0.00014879,2]
[338145177,1726302644289,-10000.0,0.00014879,2]
[338145178,1726302644299,-10000.0,0.00014879,2]
[338145179,1726302644309,-10000.0,0.00014879,2]
[338145180,1726302644318,-10000.0,0.00014879,2]
[338145181,1726302644328,-20608.2471738,0.0001488,3]
[338145182,1726302644338,-151.0,0.00014881,2]
[338145183,1726302644347,-151.0,0.00014881,2]
[338145184,1726302644358,-151.0,0.00014881,2]
[338145185,1726302644367,-339.993061,0.00014881,2]
[338145186,1726302644381,-339.993061,0.00014881,2]
[338145187,1726302644391,-151.0,0.00014881,2]
[338145188,1726302644401,-151.0,0.00014881,2]
[338145189,1726302644410,-151.0,0.00014881,2]
[338145190,1726302644421,-151.0,0.00014881,2]
[338145191,1726302644431,-150.0,0.00014883,2]
[338145192,1726302644442,-1500.0,0.00014887,2]
[338145193,1726302644452,-304.0,0.0001489,2]
[338145194,1726302644462,-150.0,0.0001489,2]
[338145195,1726302644471,-151.0,0.00014899,2]
[338145196,1726302644481,-1253.789194,0.00014899,2]
[338145197,1726302644491,-1253.789194,0.00014899,2]
[338145198,1726302644500,-422.500245,0.00014899,2]
[338145199,1726302644510,-422.500245,0.00014899,2]
[338145200,1726302644519,-230.516477,0.00014899,2]
[338145201,1726302644529,-230.516477,0.00014899,2]
[338145202,1726302644538,-323.404308,0.00014899,2]
[338145203,1726302644548,-178.018684,0.000149,2]
[338145204,1726302644557,-178.018684,0.000149,2]
[338145205,1726302644567,-257.516852,0.000149,2]
[338145206,1726302644576,-257.516852,0.000149,2]
[338145207,1726302644586,-153.309423,0.000149,2]
[338145208,1726302644595,-1116.862567,0.000149,2]
[338145209,1726302644605,-151.0,0.000149,2]
[338145210,1726302644614,-258.791647,0.000149,2]
[338145211,1726302644623,-1641.284459,0.000149,2]
[338145212,1726302644632,-1641.284459,0.000149,2]
[338145213,1726302644642,-151.0,0.000149,2]
[338145214,1726302644652,-151.0,0.000149,2]
[338145215,1726302644661,-151.0,0.000149,2]
[338145216,1726302644670,-330.045564,0.000149,2]
[338145217,1726302644679,-151.0,0.000149,2]
[338145218,1726302644688,-330.045564,0.000149,2]
[338145219,1726302644697,-172.138502,0.000149,2]
[338145220,1726302644707,-172.138502,0.000149,2]
[338145221,1726302644716,-150.0,0.000149,2]
[338145222,1726302644725,-782.795948,0.000149,2]
[338145223,1726302644734,-1534.875865,0.000149,2]
[338145224,1726302644744,-1534.875865,0.000149,2]
[338145225,1726302644753,-235.736672,0.000149,2]
[338145226,1726302644762,-235.736672,0.000149,2]
[338145227,1726302644771,-595.533647,0.000149,2]
[338145228,1726302644780,-595.533647,0.000149,2]
[338145229,1726302644790,-711.803448,0.000149,2]
[338145230,1726302644799,-711.803448,0.000149,2]
[338145231,1726302644807,-14283.61683292,0.000149,2]
[338145232,1726302644817,-1500.0,0.00014922,2]
[338145233,1726302644826,-150.0,0.00014929,2]
[338145234,1726302644835,-150.0,0.00014937,2]
[338145235,1726302644844,-150.0,0.00014938,2]
[338145236,1726302644854,-150.0,0.0001494,2]
[338145237,1726302644863,-20608.2471738,0.00014948,3]
[338145238,1726302644872,-21123.1520668,0.00014948,3]
[338145239,1726302644881,-41216.4943476,0.00014949,3]
[338145240,1726302644890,-42246.3041335,0.00014949,3]
[338145241,1726302644900,-20608.2471738,0.00014949,3]
[338145242,1726302644909,-21123.1520668,0.00014949,3]
[338145243,1726302644918,-150.0,0.00014949,2]
[338145244,1726302644927,-235.736672,0.0001495,2]
[338145245,1726302644937,-235.736672,0.0001495,2]
[338145246,1726302644946,-595.533647,0.0001495,2]
[338145247,1726302644956,-595.533647,0.0001495,2]
[338145248,1726302644965,-711.803448,0.0001495,2]
[338145249,1726302644974,-711.803448,0.0001495,2]
[338145250,1726302644984,-20608.2471738,0.0001495,3]
[338145251,1726302644993,-21123.1520668,0.0001495,3]
[338145252,1726302645002,-195155.13635737,0.00014951,2]
[338145253,1726302645011,-150.0,0.00014951,2]
[338145254,1726302645021,-150.0,0.00014951,2]
[338145255,1726302645030,-20608.2471738,0.00014951,3]
[338145256,1726302645039,-21123.1520668,0.00014951,3]
[338145257,1726302645049,-20608.2471738,0.00014956,3]
[338145258,1726302645058,-42246.3041335,0.00014956,3]
[338145259,1726302645067,-235.736672,0.00014956,2]
[338145260,1726302645076,-235.736672,0.00014956,2]
[338145261,1726302645086,-595.533647,0.00014956,2]
[338145262,1726302645095,-595.533647,0.00014956,2]